bitfinex/quotes_BTCUSD_20240727
["timestamp","ask_amount","ask_price","bid_price","bid_amount"]
[1722039995887,0.69555407,68025.0,68024.0,0.161624]
[1722039996115,0.69555407,68025.0,68024.0,0.1631782]
[1722039996116,0.96649294,68025.0,68024.0,0.1631782]
[1722039996341,0.96649294,68025.0,68024.0,0.161624]
[1722039996724,0.96649294,68025.0,68024.0,0.1631782]
[1722039997140,0.96649294,68025.0,68024.0,0.161624]
[1722039997384,0.96674179,68025.0,68024.0,0.161624]
[1722039997832,0.96674179,68025.0,68024.0,0.1631782]
[1722039998072,0.96674179,68025.0,68024.0,0.161624]
[1722039999364,0.96674179,68025.0,68024.0,0.1631782]
[1722040000149,1.26075079,68025.0,68024.0,0.0174782]
[1722040000560,1.28387712,68025.0,68024.0,0.0174782]
[1722040000961,1.2608058,68025.0,68024.0,0.015924]
[1722040002240,0.8819968,68025.0,68024.0,0.2844864]
[1722040002563,0.8819968,68025.0,68024.0,0.158624]
[1722040003336,0.5879878,68025.0,68024.0,0.158624]
[1722040003774,0.5879878,68025.0,68024.0,0.1601782]
[1722040003974,0.58822846,68025.0,68024.0,0.158624]
[1722040004290,0.61129886,68025.0,68024.0,0.158624]
[1722040004485,0.58822846,68025.0,68024.0,0.158624]
[1722040006078,0.72042522,68025.0,68024.0,0.1601782]
[1722040006258,0.72042522,68025.0,68024.0,0.158624]
[1722040006697,0.72042456,68025.0,68024.0,0.16016625]
[1722040007075,0.72042456,68025.0,68024.0,0.158624]
[1722040007271,0.51789642,68025.0,68024.0,0.158624]
[1722040007473,0.72030536,68025.0,68024.0,0.158624]
[1722040007683,0.72030536,68025.0,68024.0,0.1601782]
[1722040007843,0.7433758,68025.0,68024.0,0.158624]
[1722040008303,0.58810722,68025.0,68024.0,0.158624]
[1722040008454,0.58810722,68025.0,68024.0,0.1598252]
[1722040008663,0.58810722,68025.0,68024.0,0.158624]
[1722040008858,0.58810722,68025.0,68024.0,0.15984667]
[1722040009062,0.58810722,68025.0,68024.0,0.158624]
[1722040009305,0.14709422,68025.0,68024.0,0.3005038]
[1722040009477,0.29409822,68025.0,68024.0,0.3005038]
[1722040009679,0.29409822,68025.0,68024.0,0.2991881]
[1722040009918,0.29409822,68025.0,68024.0,0.3007423]
[1722040010650,0.29416866,68025.0,68024.0,0.1601782]
[1722040010822,0.29416866,68025.0,68024.0,0.158624]
[1722040011068,0.29416866,68025.0,68024.0,0.1601782]
[1722040011273,0.29416866,68025.0,68024.0,0.158624]
[1722040011478,0.58817766,68025.0,68024.0,0.158624]
[1722040011849,0.29416866,68025.0,68024.0,0.158624]
[1722040012884,0.31723888,68025.0,68024.0,0.158624]
[1722040013198,0.29416866,68025.0,68024.0,0.158624]
[1722040013541,0.58817766,68025.0,68024.0,0.158624]
[1722040013762,0.29416866,68025.0,68024.0,0.1601782]
[1722040013968,0.29398994,68025.0,68024.0,0.158624]
[1722040014169,0.29398994,68025.0,68024.0,0.1601782]
[1722040014341,0.29398994,68025.0,68024.0,0.158624]
[1722040015168,0.29765083,68025.0,68024.0,0.158624]
[1722040015702,0.32072108,68025.0,68024.0,0.158624]
[1722040017263,0.25061856,68025.0,68024.0,0.158624]
[1722040017462,0.61484583,68025.0,68024.0,0.158624]
[1722040018963,0.61484583,68025.0,68024.0,0.0174782]
[1722040019371,0.74708258,68025.0,68024.0,0.0174782]
[1722040019709,0.74708258,68025.0,68024.0,0.015924]
[1722040020496,0.61428308,68025.0,68024.0,0.0174782]
[1722040020700,0.61428308,68025.0,68024.0,0.015924]
[1722040020893,0.61428308,68025.0,68024.0,0.0174782]
[1722040021332,0.61428308,68025.0,68024.0,0.015924]
[1722040021548,0.61428308,68025.0,68024.0,0.0174782]
[1722040021719,0.90829208,68025.0,68024.0,0.0174782]
[1722040022299,1.05711954,68025.0,68024.0,0.0174782]
[1722040022547,1.05711954,68025.0,68024.0,0.015924]
[1722040022748,0.90829208,68025.0,68024.0,0.015924]
[1722040022947,0.90829208,68025.0,68024.0,0.0174782]
[1722040023147,0.88468166,68025.0,68024.0,0.015924]
[1722040023321,0.88468166,68025.0,68024.0,0.0174782]
[1722040023500,0.88468166,68025.0,68024.0,0.015924]
[1722040023947,0.88468166,68025.0,68024.0,0.0174782]
[1722040024261,1.03353164,68025.0,68024.0,0.0174782]
[1722040024467,1.11833164,68025.0,68024.0,0.0174782]
[1722040024664,1.19603164,68025.0,68024.0,0.0174782]
[1722040025504,1.19151487,68025.0,68024.0,0.0174782]
[1722040025917,1.04266489,68025.0,68024.0,0.0174782]
[1722040026133,1.04266489,68025.0,68024.0,0.015924]
[1722040026134,1.19151487,68025.0,68024.0,0.015924]
[1722040026343,0.9880357,68025.0,68024.0,0.015924]
[1722040026744,0.96496489,68025.0,68024.0,0.015924]
[1722040026974,0.96496489,68025.0,68024.0,0.0174782]
[1722040027175,0.96496489,68025.0,68024.0,0.015924]
[1722040028266,0.96496489,68025.0,68024.0,0.0174782]
[1722040028656,0.96496489,68025.0,68024.0,0.015924]
[1722040029062,1.11389247,68025.0,68024.0,0.0174782]
[1722040029268,0.96496489,68025.0,68024.0,0.0174782]
[1722040029472,1.11391951,68025.0,68024.0,0.015924]
[1722040029675,0.89584954,68025.0,68024.0,0.015924]
[1722040029972,0.96483459,68025.0,68024.0,0.0174782]
[1722040030195,0.96483459,68025.0,68024.0,0.015924]
[1722040030337,1.11378915,68025.0,68024.0,0.0174782]
[1722040030531,1.11378915,68025.0,68024.0,0.015924]
[1722040030763,1.11378915,68025.0,68024.0,0.0174782]
[1722040030934,1.11378915,68025.0,68024.0,0.015924]
[1722040031139,1.11378915,68025.0,68024.0,0.0174782]
[1722040031558,1.11378915,68025.0,68024.0,0.015924]
[1722040031559,1.02898915,68025.0,68024.0,0.015924]
[1722040031966,1.02898915,68025.0,68024.0,0.0174782]
[1722040032320,1.02898915,68025.0,68024.0,0.015924]
[1722040032518,1.02949726,68025.0,68024.0,0.0174782]
[1722040032734,1.02949726,68025.0,68024.0,0.015924]
[1722040033032,0.88052143,68025.0,68024.0,0.015924]
[1722040033257,1.029497,68025.0,68024.0,0.015924]
[1722040033389,1.029497,68025.0,68024.0,0.155224]
[1722040033390,0.88052143,68025.0,68024.0,0.155224]
[1722040033995,0.87952143,68025.0,68024.0,0.155224]
[1722040034548,0.90259179,68025.0,68024.0,0.155224]
[1722040034751,0.87952143,68025.0,68024.0,0.1567782]
[1722040034947,0.87952143,68025.0,68024.0,0.155224]
[1722040034948,0.87949759,68025.0,68024.0,0.155224]
[1722040035748,0.88049759,68025.0,68024.0,0.1567782]
[1722040035955,0.88049759,68025.0,68024.0,0.155224]
[1722040036416,0.81104954,68025.0,68024.0,0.155224]
[1722040036606,0.88053546,68025.0,68024.0,0.1567782]
[1722040036806,0.88053546,68025.0,68024.0,0.155224]
[1722040037299,0.88053546,68025.0,68024.0,0.1567782]
[1722040037564,0.88053546,68025.0,68024.0,0.155224]
[1722040038177,0.90360591,68025.0,68024.0,0.155224]
[1722040038410,0.90360591,68025.0,68024.0,0.1567782]
[1722040038582,0.90360591,68025.0,68024.0,0.0174782]
[1722040038943,0.90360591,68025.0,68024.0,0.015924]
[1722040039145,0.90360591,68025.0,68024.0,0.0174782]
[1722040039351,0.88053546,68025.0,68024.0,0.0174782]
[1722040039529,0.88053546,68025.0,68024.0,0.015924]
[1722040039734,0.88042637,68025.0,68024.0,0.0174782]
[1722040041921,0.88042637,68025.0,68024.0,0.015924]
[1722040042217,0.88042637,68025.0,68024.0,0.0174782]
[1722040042456,0.88042637,68025.0,68024.0,0.015924]
[1722040042641,0.88042637,68025.0,68024.0,0.01734208]
[1722040043150,0.88078271,68025.0,68024.0,0.01734208]
[1722040043764,0.88078271,68025.0,68024.0,0.015924]
[1722040043954,0.90385313,68025.0,68024.0,0.0174782]
[1722040044113,0.88078271,68025.0,68024.0,0.015924]
[1722040044611,0.88078271,68025.0,68024.0,0.01732254]
[1722040044993,0.88078271,68025.0,68024.0,0.015924]
[1722040045371,0.81104954,68025.0,68024.0,0.015924]
[1722040045575,0.8806753,68025.0,68024.0,0.0174782]
[1722040045977,0.8806753,68025.0,68024.0,0.015924]
[1722040046154,0.8806753,68025.0,68024.0,0.0174782]
[1722040046360,0.81104954,68025.0,68024.0,0.0174782]
[1722040046576,0.88075579,68025.0,68024.0,0.0174782]
[1722040046997,0.90382634,68025.0,68024.0,0.015924]
[1722040047582,0.90382634,68025.0,68024.0,0.0174782]
[1722040047810,0.90382634,68025.0,68024.0,0.015924]
[1722040048822,0.90382634,68025.0,68024.0,0.0174782]
[1722040049020,0.90382634,68025.0,68024.0,0.015924]
[1722040049387,0.90382634,68025.0,68024.0,0.0174782]
[1722040049587,0.90382634,68025.0,68024.0,0.015924]
[1722040049797,0.60988178,68025.0,68024.0,0.0174782]
[1722040049982,0.60988178,68025.0,68024.0,0.27462602]
[1722040049983,0.16886878,68025.0,68024.0,0.27462602]
[1722040050182,0.31587278,68025.0,68024.0,0.27462602]
[1722040050474,0.31587278,68025.0,68024.0,0.27307182]
[1722040050475,0.16886878,68025.0,68024.0,0.27307182]
[1722040050584,0.16886878,68025.0,68024.0,0.27462602]
[1722040050792,0.31587278,68025.0,68024.0,0.27307182]
[1722040050993,0.14586878,68025.0,68024.0,0.27462602]
[1722040051871,0.14586878,68025.0,68024.0,0.27307182]
[1722040052262,0.14586878,68025.0,68024.0,0.1628782]
[1722040052460,0.14586878,68025.0,68024.0,0.161324]
[1722040052673,0.14586878,68025.0,68024.0,0.1628782]
[1722040053062,0.14635777,68025.0,68024.0,0.161324]
[1722040053272,0.29336177,68025.0,68024.0,0.161324]
[1722040053481,0.29336177,68025.0,68024.0,0.1628782]
[1722040053687,0.29336177,68025.0,68024.0,0.161324]
[1722040053887,0.29336177,68025.0,68024.0,0.1628782]
[1722040054001,0.27029122,68025.0,68024.0,0.161324]
[1722040054209,0.27029122,68025.0,68024.0,0.455334]
[1722040054944,0.27029122,68025.0,68024.0,0.4568882]
[1722040055177,0.27029122,68025.0,68024.0,0.455334]
[1722040055864,0.12328722,68025.0,68024.0,0.455334]
[1722040056031,0.27029122,68025.0,68024.0,0.455334]
[1722040056747,0.27029122,68025.0,68024.0,0.4568882]
[1722040057114,0.56430022,68025.0,68024.0,0.455334]
[1722040057263,0.29336146,68025.0,68024.0,0.4568882]
[1722040057603,0.27029122,68025.0,68024.0,0.4568882]
[1722040058210,0.27029122,68025.0,68024.0,0.455334]
[1722040059415,0.56430022,68025.0,68024.0,0.455334]
[1722040059618,0.56430022,68025.0,68024.0,0.3739882]
[1722040059836,0.56430022,68025.0,68024.0,0.372434]
[1722040061045,0.58737046,68025.0,68024.0,0.372434]
[1722040061911,0.29336146,68025.0,68024.0,0.37374998]
[1722040062116,0.29336146,68025.0,68024.0,0.372434]
[1722040062309,0.14635746,68025.0,68024.0,0.372434]
[1722040062775,0.07609778,68025.0,68024.0,0.372434]
[1722040062973,0.29325873,68025.0,68024.0,0.3736653]
[1722040063186,0.14625473,68025.0,68024.0,0.372434]
[1722040063391,0.14625473,68025.0,68024.0,0.451734]
[1722040066061,0.07609778,68025.0,68024.0,0.59874]
[1722040066288,0.14641245,68025.0,68024.0,0.6002942]
[1722040066578,0.14641245,68025.0,68024.0,0.59874]
[1722040067015,0.14641245,68025.0,68024.0,0.59980078]
[1722040067244,0.14641245,68025.0,68024.0,0.59874]
[1722040067482,0.14641245,68025.0,68024.0,0.92322977]
[1722040068816,0.14641245,68025.0,68024.0,0.892753]
[1722040068992,0.14641245,68025.0,68024.0,0.59874]
[1722040069596,0.14645484,68025.0,68024.0,0.59874]
[1722040069802,0.14645484,68025.0,68024.0,0.59977511]
[1722040070036,0.14645484,68025.0,68024.0,0.59874]
[1722040070551,0.14645484,68025.0,68024.0,0.59954391]
[1722040070769,0.14645484,68025.0,68024.0,0.59874]
[1722040071014,0.14645484,68025.0,68024.0,1.33702557]
[1722040071259,0.07509778,68025.0,68024.0,1.68003857]
[1722040071464,0.002,68025.0,68024.0,2.41427994]
[1722040072224,0.001,68025.0,68024.0,2.70029294]
[1722040072416,0.00084,68028.0,68027.0,1.33]
[1722040072642,0.00084,68028.0,68027.0,2.29835957]
[1722040072873,0.00084,68028.0,68027.0,2.41144845]
[1722040074325,0.00084,68028.0,68027.0,2.41044845]
[1722040074704,0.00184,68028.0,68027.0,2.42444845]
[1722040075105,0.00184,68028.0,68027.0,2.43844845]
[1722040078794,0.00184,68028.0,68027.0,2.32535957]
[1722040078995,0.02490429,68028.0,68027.0,2.73255385]
[1722040079198,0.02490429,68028.0,68027.0,2.61935957]
[1722040079402,0.02490429,68028.0,68027.0,2.73268552]
[1722040079616,0.00184,68028.0,68027.0,2.48268552]
[1722040080126,0.00184,68028.0,68027.0,2.73268552]
[1722040082202,0.00184,68028.0,68027.0,2.48268552]
[1722040082566,0.00184,68028.0,68027.0,2.73268552]
[1722040083057,0.00184,68028.0,68027.0,2.88294509]
[1722040084754,0.00184,68028.0,68027.0,2.76961914]
[1722040084953,0.00184,68028.0,68027.0,2.88202437]
[1722040085390,0.00184,68028.0,68027.0,3.17602437]
[1722040086223,0.00184,68028.0,68027.0,2.92602437]
[1722040086420,0.00184,68028.0,68027.0,3.17602437]
[1722040086828,0.00184,68028.0,68027.0,2.92602437]
[1722040087033,0.00184,68028.0,68027.0,3.17602437]
[1722040088055,0.00184,68028.0,68027.0,3.06361914]
[1722040088265,0.00184,68028.0,68027.0,3.17600146]
[1722040091282,0.00184,68028.0,68027.0,3.06361914]
[1722040091485,0.00184,68028.0,68027.0,3.17581608]
[1722040094164,0.02490221,68028.0,68027.0,3.17581608]
[1722040094592,0.02490221,68028.0,68027.0,3.06361914]
[1722040094794,0.02490221,68028.0,68027.0,3.17587387]
[1722040095962,0.00184,68028.0,68027.0,3.17587387]
[1722040097944,0.00184,68028.0,68027.0,3.06361914]
[1722040098150,0.00184,68028.0,68027.0,3.1763894]
[1722040098355,0.00184,68028.0,68027.0,3.06361914]
[1722040098550,0.00184,68028.0,68027.0,3.17638905]
[1722040098940,0.02490221,68028.0,68027.0,3.17638905]
[1722040099359,0.00184,68028.0,68027.0,3.17644572]
[1722040100723,0.00184,68028.0,68027.0,3.06361914]
[1722040100928,0.00184,68028.0,68027.0,3.17383857]
[1722040101513,0.00184,68028.0,68027.0,3.17383863]
[1722040102708,0.00184,68028.0,68027.0,2.50103863]
[1722040102886,0.00184,68028.0,68027.0,2.44053863]
[1722040104569,0.00184,68028.0,68027.0,2.32761914]
[1722040104761,0.00184,68028.0,68027.0,2.44158934]
[1722040105606,0.00184,68028.0,68027.0,2.32761914]
[1722040105808,0.00184,68028.0,68027.0,2.4412657]
[1722040106011,0.00184,68028.0,68027.0,2.4421897]
[1722040107992,0.00184,68028.0,68027.0,2.44222321]
[1722040111363,0.00184,68028.0,68027.0,2.07854314]
[1722040111707,0.00184,68028.0,68027.0,2.19213495]
[1722040111910,0.02490328,68028.0,68027.0,2.19213495]
[1722040112332,0.00184,68028.0,68027.0,2.44213495]
[1722040112857,0.00184,68028.0,68027.0,2.59063495]
[1722040114545,0.00184,68028.0,68027.0,2.47704314]
[1722040114698,0.00184,68028.0,68027.0,2.59083584]
[1722040115107,0.00184,68028.0,68027.0,2.73276421]
[1722040115548,0.02490311,68028.0,68027.0,2.73276421]
[1722040116553,0.02490311,68028.0,68027.0,3.02676421]
[1722040116756,0.00184,68028.0,68027.0,3.02676421]
[1722040117617,0.00184,68028.0,68027.0,3.08782696]
[1722040118046,0.00184,68028.0,68027.0,3.08762026]
[1722040121391,0.06619137,68045.0,68044.0,0.001]
[1722040121619,0.11215343,68047.0,68046.0,0.883477]
[1722040121620,0.00084,68047.0,68046.0,0.883477]
[1722040121790,0.00084,68047.0,68046.0,2.17148542]
[1722040122004,0.08825516,68061.0,68046.0,2.17148542]
[1722040122005,0.04412376,68058.0,68057.0,0.05]
[1722040122177,0.12386376,68063.0,68062.0,0.489773]
[1722040122373,0.07974,68063.0,68062.0,1.456121]
[1722040122583,0.07974,68063.0,68062.0,1.6018331]
[1722040123442,0.07974,68063.0,68062.0,1.5528331]
[1722040123855,0.08074,68063.0,68062.0,1.6158331]
[1722040124058,0.08074,68063.0,68062.0,1.5668331]
[1722040124274,0.00084,68063.0,68062.0,1.5528331]
[1722040124476,0.00084,68063.0,68062.0,2.1579821]
[1722040124477,0.00184,68063.0,68062.0,2.1579821]
[1722040124703,0.00284,68063.0,68062.0,2.1719821]
[1722040124914,0.00284,68063.0,68062.0,2.28623803]
[1722040127221,0.00284,68063.0,68062.0,2.1719821]
[1722040128575,0.0258928,68063.0,68062.0,2.1719821]
[1722040129189,0.0862928,68063.0,68062.0,1.4960331]
[1722040129365,0.0862928,68063.0,68062.0,1.5808331]
[1722040129501,0.06324,68063.0,68062.0,1.350321]
[1722040129701,0.06324,68063.0,68062.0,1.435121]
[1722040130568,0.14214,68063.0,68062.0,1.435121]
[1722040131228,0.14584,68063.0,68062.0,0.32185]
[1722040131457,0.293762,68063.0,68062.0,0.32185]
[1722040132077,0.587607,68063.0,68062.0,0.32185]
[1722040132355,0.585607,68063.0,68062.0,0.29385]
[1722040132564,0.6096633,68063.0,68062.0,0.30785]
[1722040132780,0.6106633,68063.0,68062.0,0.32185]
[1722040132913,0.587607,68063.0,68062.0,0.32185]
[1722040135208,0.293762,68063.0,68062.0,0.32185]
[1722040135627,0.904452,68063.0,68062.0,0.32185]
[1722040135841,0.9275083,68063.0,68062.0,0.32185]
[1722040136043,1.34566275,68063.0,68062.0,0.32185]
[1722040136443,1.34566275,68063.0,68062.0,0.30785]
[1722040136444,1.2567705,68063.0,68062.0,0.30785]
[1722040136676,1.2557705,68063.0,68062.0,0.29885]
[1722040136839,1.36563581,68063.0,68062.0,0.30385]
[1722040137022,1.36563581,68063.0,68062.0,0.29885]
[1722040137268,1.36563581,68063.0,68062.0,0.30385]
[1722040137465,1.36565591,68063.0,68062.0,0.30385]
[1722040138258,1.36565591,68063.0,68062.0,0.29885]
[1722040138653,1.36565591,68063.0,68062.0,0.30385]
[1722040140691,1.34259823,68063.0,68062.0,0.30385]
[1722040141857,1.3327142,68063.0,68062.0,0.30385]
[1722040142667,1.3327142,68063.0,68062.0,0.29385]
[1722040142897,1.3347142,68063.0,68062.0,0.29385]
[1722040143212,1.3367142,68063.0,68062.0,0.29385]
[1722040143551,1.3617728,68063.0,68062.0,0.29385]
[1722040143753,1.3387142,68063.0,68062.0,0.29385]
[1722040144168,1.40758292,68063.0,68062.0,0.29385]
[1722040144366,1.40558292,68063.0,68062.0,0.29385]
[1722040144883,1.40758292,68063.0,68062.0,0.29385]
[1722040145686,1.3387142,68063.0,68062.0,0.29385]
[1722040146968,1.36177287,68063.0,68062.0,0.29385]
[1722040147367,1.3387142,68063.0,68062.0,0.29385]
[1722040147574,1.4235142,68063.0,68062.0,0.29385]
[1722040151799,1.55647787,68063.0,68062.0,0.29385]
[1722040152134,1.26263287,68063.0,68062.0,0.29385]
[1722040152354,1.23557471,68063.0,68062.0,0.29385]
[1722040152495,1.23357471,68063.0,68062.0,0.29385]
[1722040152840,1.23357471,68063.0,68062.0,0.29685]
[1722040155089,1.29247671,68063.0,68062.0,0.29685]
[1722040155290,1.31553487,68063.0,68062.0,0.29685]
[1722040156122,1.20562936,68063.0,68062.0,0.29685]
[1722040156299,1.49947436,68063.0,68062.0,0.29685]
[1722040156558,1.49847436,68063.0,68062.0,0.29685]
[1722040156884,1.49947436,68063.0,68062.0,0.29685]
[1722040157195,1.56815421,68063.0,68062.0,0.29685]
[1722040159681,1.49947436,68063.0,68062.0,0.29685]
[1722040159886,1.56815721,68063.0,68062.0,0.29685]
[1722040161203,1.54509905,68063.0,68062.0,0.29685]
[1722040161993,1.67702946,68063.0,68062.0,0.29685]
[1722040162560,1.53772946,68063.0,68062.0,0.29685]
[1722040162759,0.25650096,68063.0,68062.0,0.550335]
[1722040162964,0.08493342,68063.0,68062.0,0.991108]
[1722040163167,0.0409572,68063.0,68062.0,1.284957]
[1722040163374,0.00454,68063.0,68062.0,1.284957]
[1722040163593,0.00354,68063.0,68062.0,1.284957]
[1722040164042,0.00354,68063.0,68062.0,1.282957]
[1722040164455,0.02659447,68063.0,68062.0,1.577806]
[1722040164898,0.00454,68063.0,68062.0,1.589806]
[1722040165111,0.00454,68063.0,68062.0,1.587806]
[1722040165318,0.00554,68063.0,68062.0,1.599806]
[1722040167018,0.00284,68063.0,68062.0,1.71451338]
[1722040167228,0.00284,68063.0,68062.0,1.599806]
[1722040167917,0.02589355,68063.0,68062.0,1.599806]
[1722040168274,0.02389355,68063.0,68062.0,1.575806]
[1722040168476,0.02489355,68063.0,68062.0,1.589806]
[1722040168891,0.02489355,68063.0,68062.0,1.575806]
[1722040168892,0.02389355,68063.0,68062.0,1.575806]
[1722040169320,0.02489355,68063.0,68062.0,1.589806]
[1722040169535,0.00184,68063.0,68062.0,1.589806]
[1722040170241,0.00184,68063.0,68062.0,1.603806]
[1722040170362,0.00184,68063.0,68062.0,1.589806]
[1722040170744,0.00084,68063.0,68062.0,1.589806]
[1722040170874,0.00084,68063.0,68062.0,1.603806]
[1722040173540,0.00084,68063.0,68062.0,1.652806]
[1722040173712,0.00084,68063.0,68062.0,1.897655]
[1722040173911,0.00084,68063.0,68062.0,2.194955]
[1722040174862,0.00084,68063.0,68062.0,2.180955]
[1722040175063,0.00084,68063.0,68062.0,2.166955]
[1722040175313,0.00084,68063.0,68062.0,2.194955]
[1722040175727,0.00084,68063.0,68062.0,2.180955]
[1722040175928,0.00084,68063.0,68062.0,2.179955]
[1722040176102,0.00084,68063.0,68062.0,2.193955]
[1722040180803,0.02389193,68063.0,68062.0,1.944955]
[1722040181008,0.00084,68063.0,68062.0,1.944955]
[1722040181218,0.00084,68063.0,68062.0,1.519006]
[1722040181439,0.00084,68063.0,68062.0,1.574121]
[1722040185767,0.00084,68063.0,68062.0,1.489321]
[1722040185958,0.00084,68063.0,68062.0,1.574121]
[1722040186315,0.00084,68063.0,68062.0,1.496021]
[1722040188618,0.02389307,68063.0,68062.0,1.496021]
[1722040188816,0.02389307,68063.0,68062.0,1.64628057]
[1722040189215,0.02389307,68063.0,68062.0,1.56148057]
[1722040189521,0.02389307,68063.0,68062.0,1.64628057]
[1722040189668,0.00084,68063.0,68062.0,1.64628057]
[1722040193111,0.02389314,68063.0,68062.0,1.64628057]
[1722040193540,0.02759314,68063.0,68062.0,0.762623]
[1722040193737,0.02759314,68063.0,68062.0,1.056472]
[1722040193964,0.06464527,68063.0,68062.0,1.056472]
[1722040194135,0.06464527,68063.0,68062.0,1.042472]
[1722040194312,0.06464527,68063.0,68062.0,1.028472]
[1722040194512,0.04159213,68063.0,68062.0,1.042472]
[1722040194966,0.04059213,68063.0,68062.0,1.042472]
[1722040195099,0.04059213,68063.0,68062.0,1.056472]
[1722040195100,0.04159213,68063.0,68062.0,1.056472]
[1722040195363,0.00454,68063.0,68062.0,1.056472]
[1722040195829,0.00354,68063.0,68062.0,1.042472]
[1722040196457,0.00454,68063.0,68062.0,1.028472]
[1722040196678,0.00454,68063.0,68062.0,1.042472]
[1722040196880,0.00454,68063.0,68062.0,1.056472]
[1722040197739,0.02759384,68063.0,68062.0,1.056472]
[1722040198279,0.02759384,68063.0,68062.0,1.09908698]
[1722040198280,0.00454,68063.0,68062.0,1.09908698]
[1722040200455,0.00454,68063.0,68062.0,1.056472]
[1722040201362,0.02759397,68063.0,68062.0,1.056472]
[1722040202108,0.02759397,68063.0,68062.0,0.762623]
[1722040202469,0.00454,68063.0,68062.0,0.762623]
[1722040203711,0.00454,68063.0,68062.0,0.32185]
[1722040203712,0.08834471,68063.0,68062.0,0.32185]
[1722040203917,0.11035552,68063.0,68062.0,0.32185]
[1722040204124,0.13236634,68063.0,68062.0,0.32185]
[1722040204322,0.04432308,68063.0,68062.0,0.32185]
[1722040204939,0.04432308,68063.0,68062.0,0.30785]
[1722040205200,0.04432308,68063.0,68062.0,0.29385]
[1722040205370,0.04432308,68063.0,68062.0,0.30385]
[1722040205574,0.04432308,68063.0,68062.0,0.31385]
[1722040205787,0.06670425,68063.0,68062.0,0.31385]
[1722040205944,0.06670425,68063.0,68062.0,0.30385]
[1722040205945,0.91846091,68063.0,68062.0,0.30385]
[1722040206151,0.33077091,68063.0,68062.0,0.30385]
[1722040206351,0.18284891,68063.0,68062.0,0.344235]
[1722040206611,0.18384891,68063.0,68062.0,0.344235]
[1722040208420,0.33077091,68063.0,68062.0,0.344235]
[1722040209398,0.35382625,68063.0,68062.0,0.344235]
[1722040210527,0.33077091,68063.0,68062.0,0.344235]
[1722040211086,0.70941591,68063.0,68062.0,0.31385]
[1722040212039,0.70941591,68063.0,68062.0,0.30385]
[1722040212245,0.18284891,68063.0,68062.0,0.29385]
[1722040212648,0.11804891,68063.0,68062.0,0.30085]
[1722040212845,0.11804891,68063.0,68062.0,0.3750145]
[1722040213071,0.11804891,68063.0,68062.0,0.3680145]
[1722040213411,0.11904891,68063.0,68062.0,0.3760145]
[1722040213621,0.11904891,68063.0,68062.0,0.3830145]
[1722040213823,0.11904891,68063.0,68062.0,0.3760145]
[1722040214406,0.11904891,68063.0,68062.0,0.3840145]
[1722040214964,0.04364891,68063.0,68062.0,0.3840145]
[1722040215613,0.04264891,68063.0,68062.0,0.3840145]
[1722040215906,0.06570425,68063.0,68062.0,0.3840145]
[1722040216254,0.04164891,68063.0,68062.0,0.30985]
[1722040216458,0.18857091,68063.0,68062.0,0.30985]
[1722040216658,0.04364891,68063.0,68062.0,0.30985]
[1722040216879,0.00554,68063.0,68062.0,0.30985]
[1722040217086,0.04364891,68063.0,68062.0,0.30985]
[1722040217541,0.04264891,68063.0,68062.0,0.30985]
[1722040217786,0.04364891,68063.0,68062.0,0.30985]
[1722040218033,0.33627091,68063.0,68062.0,0.30985]
[1722040219344,0.35932625,68063.0,68062.0,0.30985]
[1722040223201,0.72149788,68063.0,68062.0,0.30985]
[1722040224846,0.72148916,68063.0,68062.0,0.30985]
[1722040225900,1.01533416,68063.0,68062.0,0.30985]
[1722040226129,1.26386125,68063.0,68062.0,0.30985]
[1722040227302,0.97001625,68063.0,68062.0,0.30185]
[1722040227642,0.97001625,68063.0,68062.0,0.29685]
[1722040227847,0.96624673,68063.0,68062.0,0.29685]
[1722040228325,0.96624673,68063.0,68062.0,0.29985]
[1722040228489,0.94319139,68063.0,68062.0,0.29685]
[1722040228699,0.94319139,68063.0,68062.0,0.29985]
[1722040229906,1.01150765,68063.0,68062.0,0.29985]
[1722040231585,1.01150042,68063.0,68062.0,0.29985]
[1722040231726,1.03455672,68063.0,68062.0,0.29985]
[1722040232557,1.11935672,68063.0,68062.0,0.29985]
[1722040232959,1.09630042,68063.0,68062.0,0.29985]
[1722040234960,1.09621507,68063.0,68062.0,0.29985]
[1722040235184,1.01141507,68063.0,68062.0,0.29985]
[1722040235415,1.09621507,68063.0,68062.0,0.29985]
[1722040236382,1.11927121,68063.0,68062.0,0.29985]
[1722040236600,1.17817021,68063.0,68062.0,0.29985]
[1722040237296,1.15511407,68063.0,68062.0,0.29985]
[1722040238451,1.15526641,68063.0,68062.0,0.29985]
[1722040239362,1.17832264,68063.0,68062.0,0.29985]
[1722040239774,1.54729743,68063.0,68062.0,0.29985]
[1722040240042,1.64729743,68063.0,68062.0,0.29985]
[1722040240781,1.54911141,68063.0,68062.0,0.29985]
[1722040241104,1.54811141,68063.0,68062.0,0.29985]
[1722040241446,1.54911141,68063.0,68062.0,0.29985]
[1722040241645,1.47973539,68063.0,68062.0,0.29985]
[1722040241788,1.54949931,68063.0,68062.0,0.29985]
[1722040241992,1.54849931,68063.0,68062.0,0.29985]
[1722040242188,1.54949931,68063.0,68062.0,0.29985]
[1722040243538,1.69826647,68063.0,68062.0,0.29985]
[1722040243983,1.72132382,68063.0,68062.0,0.29985]
[1722040244799,1.63652382,68063.0,68062.0,0.29985]
[1722040245015,1.69820758,68063.0,68062.0,0.29985]
[1722040245420,1.17386258,68063.0,68062.0,0.329835]
[1722040245624,0.73024548,68063.0,68062.0,0.329835]
[1722040247464,0.73124548,68063.0,68062.0,0.329835]
[1722040248360,0.66154539,68063.0,68062.0,0.29985]
[1722040248558,0.75448827,68063.0,68062.0,0.29985]
[1722040249067,1.34094479,68063.0,68062.0,0.29985]
[1722040249268,1.48597827,68063.0,68062.0,0.29985]
[1722040249483,1.57077827,68063.0,68062.0,0.29985]
[1722040249732,1.54772152,68063.0,68062.0,0.29985]
[1722040250605,1.54772152,68063.0,68062.0,0.29685]
[1722040250844,1.54772152,68063.0,68062.0,0.29385]
[1722040251036,1.55472152,68063.0,68062.0,0.29385]
[1722040251455,1.54772152,68063.0,68062.0,0.29385]
[1722040251676,1.55083537,68063.0,68062.0,0.29385]
[1722040251901,1.55483537,68063.0,68062.0,0.29385]
[1722040253022,1.57789268,68063.0,68062.0,0.29385]
[1722040253305,1.55483537,68063.0,68062.0,0.29385]
[1722040254941,1.55482933,68063.0,68062.0,0.29385]